{"text_format":"1","workbook":"xlsx","n_sheets":3,"sheets":["FORMULAIRE","KM (à titre indicatif) ","Modèle "],"not_rendered":{"charts":0,"images":1,"macros":1,"external_links":0,"defined_names":1,"comments":0,"pivot_tables":0},"unopened":[],"bounds":{"document_bytes":16777216,"sheet_cells":100000,"rows_first":2000,"rows_last":500,"rows_between":2000,"halvings":0,"cell_chars":16384,"cell_head_chars":4096},"cells_cut":0,"cells_raw":0,"read":"whole","date_system":"1900"}

{"sheet":"FORMULAIRE","index":0,"n_rows":121,"n_cols":48,"rows_kept":121,"cut":false,"hidden":false,"merged":[[33,1,33,2],[16,13,16,16],[17,13,17,16],[18,13,18,16],[19,13,19,16],[20,13,20,16],[28,11,28,12],[29,11,29,12],[30,11,30,12],[26,14,26,16],[26,8,26,11],[28,14,30,15],[28,6,28,8],[29,6,29,8],[30,6,30,8],[28,9,28,10],[11,13,11,15],[12,13,12,16],[13,13,13,16],[14,13,14,16],[15,13,15,16],[29,9,29,10],[30,9,30,10],[27,0,27,3],[30,0,30,3],[21,13,21,16],[25,0,25,2],[25,9,25,10],[22,9,22,10],[23,1,23,2],[23,9,23,10],[22,1,22,2],[24,9,24,10],[24,13,24,16],[25,13,25,16],[22,13,22,16],[23,13,23,16],[16,1,16,2],[18,1,18,2],[13,1,13,2],[20,9,20,10],[21,1,21,2],[21,9,21,10],[20,1,20,2],[0,11,0,14],[7,1,7,3],[24,1,24,2],[14,9,14,10],[15,9,15,10],[16,9,16,10],[17,1,17,2],[17,9,17,10],[18,9,18,10],[19,1,19,2],[19,9,19,10],[13,9,13,10],[15,1,15,2],[14,1,14,2],[2,1,2,3],[4,1,4,3],[0,0,0,2],[0,3,0,4],[0,7,0,8],[4,5,4,6],[2,5,2,6],[6,1,6,3],[11,1,11,2],[11,9,11,10],[12,1,12,2],[12,9,12,10],[8,1,8,2],[6,5,7,7]]}
["NUMÉRO DE MATRICULE: ",null,null,689000000,null,null,"Destination: ","Montréal",null,null,"#Frais de voyage",{"$f":"+U6","v":" "},null,null,null,null,null,null,null,"Allée ","# frais de voyage",null,null,null,"000-0-00000-000",null,null,null,null,null,null,null,null,null,null,null,null,null,null,null,null,false,{"$f":"CODE(AP1)","v":70},"oui",{"$f":"IF(AQ1=86,$AG$9,AB14)","v":0}]
[null,null,null,null,null,"Nom du supérieur immédiat",null,null,null,null,null,null,null,null,"    AM           PM",null,null,null,null,"Allée/Retour",{"$f":"(MID(B3,1,2))","v":""},null,null,null,"999-9-99999-999",null,null,null,null,null,null,null,null,null,null,null,null,null,null,"oui",null,false,{"$f":"CODE(AP2)","v":70},"oui",0]
["Nom:",null,null,null,null,null,null,null,null,"DÉPART:",null,"HEURE:",null,null,null,null,null,null,null,"Retour",{"$f":"CODE(U2)","v":{"$error":"#VALUE!"}},null,null,null,null,null,null,null,null,null,{"$f":"IF(AA41=86,8,\" \")","v":" "},null,null,null,null,null,null,null,null,null,null,false,{"$f":"CODE(AP3)","v":70},"oui",0]
[null,null,null,null,null,"Objet",null,null,null,"ARRIVÉE:",null,"HEURE:",null,null,null,null,null,null,null,null,{"$f":"TODAY()","v":"2021-11-22"},{"$f":"TODAY()","v":"2021-11-22"},null,null,null,null,null,null,null,null,null,null,null,null,null,null,null,null,null,null,null,false,70,"oui",0]
["Prénom:",null,null,null,null,null,null,null,null,null,null,null,null,null,null,null,null,null,null,null,null,null,null,null,null,null,null,null,null,null,null,null,null,null,null,null,null,null,null,null,null,false,70,"oui",0]
[null,null,null,null,null,"Précisez  la raison de votre voyage",null,null,null,"DÉPART:",null,"HEURE:",null,null,null,null,null,null,null,{"$f":"IF(U8=TRUE,CONCATENATE(U3,MID(Y7,2,4),\" \"))","v":false},{"$f":"IF(U8=TRUE,CONCATENATE(U2,MID(Y7,7,6)),\" \")","v":" "},null,null,null,null,null,null,null,null,null,null,null,null,null,null,null,null,null,null,null,null,false,70,"oui",0]
["Adresse :",null,null,null,null,null,null,null,null,"ARRIVÉE:",null,"HEURE:",null,null,null,null,null,null,null,null,{"$f":"IF(U2=TRUE,U2,\" \")","v":" "},null,null,null,{"$f":"NOW()","v":"2021-11-22T13:33:34.930"},null,null,null,null,null,null,null,null,null,null,null,null,null,null,null,null,false,70,"oui",0]
["Ville :",null,null,null,null,null,null,null,null,null,null,null,null,null,null,null,null,null,null,null,{"$f":"ISNUMBER(U3)","v":false},null,null,null,null,null,null,null,null,null,null,"covoiturage ",null,0.2,null,null,null,null,null,null,null,false,70,"oui",0]
["Province :",null,null,null,null,null,null,null,null,null,null,"Réservé à l'administration ",null,null,null,null,null,null,null,null,null,null,null,null,null,null,null,null,null,null,null,null,0.64,1,null,null,null,null,null,null,null,false,70,"oui",0]
[null,null,null,"CODE POSTAL",null,null,null,null,null,null,null,"Vérifié par: _____________________________________",null,null,null,null,null,null,null,null,null,null,null,null,null,null,null,null,null,null,null,null,0.46,0.49,null,"Frais fondés sur les reçus",null,null,null,null,null,false,70,"oui",0]
[null,null,null,null,null,null,null,null,null,null,null,"Date de paiement: ",null,null,null,null,null,null,null,{"$f":"+MID(Y7,7,6)","v":"564987"},null,null,null,null,null,null,null,null,null,null,"Kilometre",null,null,null,null,"Autobus",null,null,null,"Province",null,false,70,"oui",0]
["Date","Frais de Km ",null,"Nb Km / jour \n","0,46$ /km ou 0,49$ /km","Covoiturage","Frais quotidiens","Frais fondés sur les reçus","Montant du reçu ($)","Taux de remboursement Annexe A",null,"Frais divers et \nFaux frais ","Total de la ligne","Justification",null,null,null,null,null,null,null,null,null,null,null,null,null,null,null,null,"  KM parcourus (explications requises)",null,0.46,0.64,null,"Autres",null,null,null,"Alberta",null,false,70,"oui",0]
[null,null,null,null,{"$f":"+AC14+Y14","v":0},null,null,null,null,null,null,null,{"$f":"IF(ISTEXT($H$1),V14,\" \")","v":0},null,null,null,null,null,null,null,null,"Total ligne","Frais fondés sur le recu ","Faux frais ","Km en deca de 15 km","remb frais quotidien ","KM/ covoiturage","Kilometrage","Kilometrage (Km)","Frais remb (montant employés)","  KM parcourus à l'intérieur de 15 km",null,null,null,null,"Avion",null,null,null,"Colombie-Britannique",null,false,{"$f":"CODE(AP13)","v":70},"oui",{"$f":"IF(AQ13=86,$AG$9,AB26)","v":0}]
[null,null,null,null,{"$f":"+AC15+Y15","v":0},null,null,null,null,null,null,null,0,null,null,null,null,null,null,null,null,{"$f":"IF(ISNA(Z14+AC14+AD14+I13+Y14+X14)=FALSE,Z14+AC14+AD14+I13+Y14+X14,\" \")","v":0},null,{"$f":"IF(AR20=84,10,IF(AR20=86,10,0))","v":0},{"$f":"+IF(AA41=86,10,IF(V41=86,12,IF(AA41=84,10,IF(V41=84,12,0))))","v":0},{"$f":"IF(ISNA(VLOOKUP(G13,$AO$57:$AP$79,2,FALSE))=TRUE, ,VLOOKUP($G13,$AO$57:$AP$79,2,FALSE))","v":0},{"$f":"IF(AQ1=86,$AG$9,IF(AQ1=84,$AG$9,AB14))","v":0},{"$f":"IF(ISNA(VLOOKUP(B13,$AE$12:$AG$38,3))=TRUE, ,VLOOKUP($B13,$AE$12:$AG$38,3))","v":0},{"$f":"IF((AA14=0.64),(AB14+0.2)*D13,AB14*D13)","v":0},{"$f":"IF(ISNA(VLOOKUP($J13,$AH$40:$AI$78,2,FALSE))=TRUE, ,VLOOKUP($J13,$AH$40:$AI$78,2,FALSE))","v":0},"Blanc-Sablon - Québec ",null,0.46,0.64,null,"Essence",null,null,null,"Île-du-Prince-Édouard",null,false,{"$f":"CODE(AP14)","v":70},"oui",{"$f":"IF(AQ14=86,$AG$9,AB27)","v":0}]
[null,null,null,null,0,null,null,null,null,null,null,null,0,null,null,null,null,null,null,null,null,0,null,{"$f":"IF(AR21=84,10,IF(AR21=86,10,0))","v":0},{"$f":"+IF(AA42=86,10,IF(V42=86,12,IF(AA42=84,10,IF(V42=84,12,0))))","v":0},{"$f":"IF(ISNA(VLOOKUP(G14,$AO$57:$AP$72,2,FALSE))=TRUE, ,VLOOKUP($G14,$AO$57:$AP$79,2,FALSE))","v":0},{"$f":"IF(AQ2=86,$AG$9,IF(AQ2=84,$AG$9,AB15))","v":0},0,{"$f":"IF((AA15=0.64),(AB15+0.2)*D14,AB15*D14)","v":0},0,"Blanc-Sablon - Rimouski ",null,0.46,0.64,null,"Hébergement, fact d'hôtel",null,null,null,"Manitoba",null,true,{"$f":"CODE(AP15)","v":86},"oui",{"$f":"IF(AQ15=86,$AG$9,AB28)","v":0.64}]
[null,null,null,null,0,null,null,null,null,null,null,null,0,null,null,null,null,null,null,null,null,0,null,0,0,{"$f":"IF(ISNA(VLOOKUP(G15,$AO$57:$AP$79,2,FALSE))=TRUE, ,VLOOKUP($G15,$AO$57:$AP$79,2,FALSE))","v":0},0,0,0,0,"Blanc-Sablon - St-John",null,0.46,0.64,null,"Location automobile",null,null,null,"Nouveau-Brunswick"]
[null,null,null,null,0,null,null,null,null,null,null,null,0,null,null,null,null,null,null,null,null,0,null,0,0,0,0,0,0,0,"KM routes non-pavées (extérieur territoire)",null,0.92,0.64,null,"Stationnement, $ du reçu",null,null,null,"Nunavut",null,null,null,null,null,null,null,"Objet"]
[null,null,null,null,0,null,null,null,null,null,null,null,0,null,null,null,null,null,null,null,null,0,null,0,0,0,0,0,0,0,"KM routes non-pavées (sur le territoire)",null,0.98,0.64,null,"Taxi, $ du reçu",null,null,null,"Québec",null,null,null,null,null,null,null,"Formation"]
[null,null,null,null,0,null,null,null,null,null,null,null,0,null,null,null,null,null,null,null,null,0,null,0,0,0,0,0,0,0,"Lourdes-de-Blanc-Sablon - Blanc-Sablon ",null,0.49,0.64,null,"Train, $ du reçu",null,null,null,"Saskatchewan",null,null,"Faux frais ",10,null,null,null,"Rencontre"]
[null,null,null,null,0,null,null,null,null,null,null,null,0,null,null,null,null,null,null,null,null,0,null,0,0,0,0,0,0,0,"Lourdes-de-Blanc-Sablon - St-Paul ",null,0.49,0.64,null,"Transport en commun",null,null,null,"Terre-Neuve-et-Labrador",null,null,false,{"$f":"CODE(AQ20)","v":70},{"$f":"IF(AR20=86,10,\" \")","v":" "},null,null,"Réunion syndicale"]
[null,null,null,null,0,null,null,null,null,null,null,null,0,null,null,null,null,null,null,null,null,0,null,0,0,0,0,0,0,0,"Lourdes-de-Blanc-Sablon - Vieux-Fort ",null,0.49,0.64,null,"Traverse Blanc-Sablon - St-Barbe",null,null,null,"Territoire du Nord-Ouest",null,null,false,{"$f":"CODE(AQ21)","v":70},{"$f":"IF(AR21=86,10,\" \")","v":" "},null,null,"Réunion"]
[null,null,null,null,0,null,null,null,null,null,null,null,0,null,null,null,null,null,null,null,null,0,null,0,0,0,0,0,0,0,"Montréal - Ottawa ",null,0.46,0.64,null,"Traverse Port-aux-Basques - North Sydney",null,null,null,"Yukon",null,null,false,{"$f":"CODE(AQ22)","v":70},{"$f":"IF(AR22=86,10,\" \")","v":" "},null,null,"Autre"]
[null,null,null,null,0,null,null,null,null,null,null,null,0,null,null,null,null,null,null,null,null,0,null,0,0,0,0,0,0,0,"Montréal - Toronto ",null,0.46,0.64,null,null,null,null,null,null,null,null,false,70," "]
[null,null,null,null,0,null,null,null,null,null,null,null,0,null,null,null,null,null,null,null,null,0,null,0,0,0,0,0,0,0,"Québec - Sherbrooke ",null,0.46,0.64,null,null,null,null,null,null,null,null,false,70," "]
[null,null,null,null,0,null,null,null,null,null,null,null,0,null,null,null,null,null,null,null,null,0,null,0,0,0,0,0,0,0,"Québec-Montréal ",null,0.46,0.64,null,null,null,null,null,null,null,null,false,70," "]
["TOTAL",null,null,null,{"$f":"SUM(E13:E25)","v":0},null,{"$f":"SUM(Z14:Z26)","v":0},null,{"$f":"SUM(I13:I25)","v":0},{"$f":"SUM(AD14:AD28)","v":0},null,{"$f":"SUM(X14:X26)","v":0},{"$f":"+E26+G26+I26+J26+L26","v":0},null,null,null,null,null,null,null,null,0,null,0,0,0,0,0,0,0,"Rivière-St-Paul - Blanc-Sablon ",null,0.49,0.64,null,null,null,null,null,null,null,null,false,70," "]
[null,null,null,null,null,null,null,null,"(MOINS) DEMANDE D'AVANCE DE FONDS, S'IL Y A LIEU",null,null,null,null,null,null,null,null,null,null,null,null,null,null,10,null,null,0,null,null,null,"Sept-Îles - Baie-Comeau ",null,0.46,0.64,null,null,null,null,null,null,null,null,false,70," "]
[null,null,null,null,null,null,null,null,null,null,null,null,null,null,"Total du frais de déplacement ",null,null,null,null,null,null,null,null,{"$f":"IF(AR34=84,10,0)","v":0},{"$f":"+IF(AA55=86,10,IF(V55=86,12,))","v":0},{"$f":"IF(ISNA(VLOOKUP(G27,$AO$57:$AP$79,2,FALSE))=TRUE, ,VLOOKUP($G27,$AO$57:$AP$79,2,FALSE))","v":0},{"$f":"IF(AQ15=86,$AG$9,IF(AQ15=84,$AG$9,AB28))","v":0.64},{"$f":"IF(ISNA(VLOOKUP(A27,$AE$12:$AG$38,3))=TRUE, ,VLOOKUP($A27,$AE$12:$AG$38,3))","v":0},{"$f":"IF((AA28=0.64),(AB28+0.2)*D27,AB28*D27)","v":0},{"$f":"IF(ISNA(VLOOKUP($J27,$AH$40:$AI$78,2,FALSE))=TRUE, ,VLOOKUP($J27,$AH$40:$AI$78,2,FALSE))","v":0},"Sept-Îles - Havre-St-Pierre ",null,0.46,0.64,null,null,"Supérieur Immédiat",null,null,null,null,null,false,70," "]
["Signature de l'employé",null,null,null,null,"CODE: ",null,null,null,"Projet/mesure:",null,null,null,null,{"$f":"SUM(M13:M25)-M27","v":0},null,null,null,null,null,null,null,null,null,null,null,null,null,null,null,"Sept-Îles - La Malbaie ",null,0.46,0.64,null,null,"Ana Osborne",null,null,null,null,null,false,70," "]
[null,null,null,null,null,"CODE:",null,null,null,"Projet/mesure:",null,null,null,null,null,null,null,null,null,null,null,null,null,null,null,null,null,null,null,null,"Sept-Îles - Montréal ",null,0.46,0.64,null,null,"Céline Girard ",null,null,null,null,null,false,70," "]
[null,null,null,null,null,"CODE:",null,null,null,"Projet/mesure:",null,null,null,null,null,null,null,null,null,null,null,null,null,null,null,null,null,null,null,null,"Sept-Îles - Natasquan ",null,0.46,0.64,null,null,"Deborah Foltin",null,null,null,null,null,false,70," "]
["Signature du gestionnaire",null,null,null,null,null,null,null,null,null,null,null,null,null,null,null,null,null,null,null,null,null,null,null,null,null,null,null,null,null,"Sept-Îles - Québec ",null,0.46,0.64,null,null,"Kelly Anderson",null,null,null,null,null,false,70," "]
[null,null,null,null,null,null,null,null,null,null,null,null,null,null,null,null,null,null,null,null,null,null,null,null,null,null,null,null,null,null,"St-Barbe - Corner Brooke ",null,0.46,0.64,null,null,"Marc-André Masse",null,null,null,null,null,true,86,10]
["DATE:",{"$f":"TODAY()","v":"2021-11-22"},null,null,null,null,null,null,null,null,null,null,null,null,null,null,null,null,null,null,null,null,null,null,null,null,null,null,null,null,"St-Barbe - Deer Lake ",null,0.46,0.64,null,null,"Marie Hamel "]
[null,null,null,null,null,null,null,null,null,null,null,null,null,null,null,null,null,null,null,null,null,null,null,null,null,null,null,null,null,null,"St-Barbe - Port-aux-Basques ",null,0.46,0.64,null,null,"Marie-Pier Rioux"]
[null,null,null,null,null,null,null,null,null,null,null,null,null,null,null,null,null,null,null,null,null,null,null,null,null,null,null,null,null,null,"St-Barbe - Stephenville ",null,0.46,0.64,null,null,"Martine Joncas"]
[null,null,null,null,null,null,null,null,null,null,null,null,null,null,null,null,null,null,null,null,null,null,null,null,null,null,null,null,null,null,"Vieux-Fort - Blanc-Sablon ",null,0.49,0.64,null,null,"Nadia Landry"]
[null,null,null,null,null,null,null,null,null,null,null,null,null,null,null,null,null,null,null,null,null,null,null,null,null,null,null,null,null,null,"Vieux-Fort - Rivière-St-Paul",null,0.49,0.64,null,null,"Philip Joycey"]
[null,null,null,null,null,null,null,null,null,null,null,null,null,null,null,null,null,null,null,null,null,null,null,null,null,null,null,null,null,"Baie-Comeau",null,null,null,"Remb frais ",null,null,"Pierre Boudreau "]
[null,null,null,null,null,null,null,null,null,null,null,null,null,null,null,null,null,null,null,null,null,null,null,null,null,"Km parcouru  à l,interieur de 15 km",null,null,null,"Blanc-Sablon",null,null,null,null,null,null,"Rebecca Nadeau-Monger"]
[null,null,null,null,null,null,null,null,null,null,null,null,null,null,null,null,null,null,null,null,null,null,null,null,null,{"$f":"EXACT($AE$13,B13)","v":false},{"$f":"CODE(Z41)","v":70},null,null,"Chevery",null,null,null,"Chevery / Harrington Harbour (35$)",35,null,"Stéphane Daoust"]
[null,null,null,null,null,null,null,null,null,null,null,null,null,null,null,null,null,null,null,null,null,null,null,null,null,{"$f":"EXACT($AE$13,B14)","v":false},{"$f":"CODE(Z42)","v":70},null,null,"Gatineau",null,null,null,"Chevery / La Tabatière (163$)",163,null,"Vincent Joncas"]
[null,null,null,null,null,null,null,null,null,null,null,null,null,null,null,null,null,null,null,null,null,null,null,null,null,false,{"$f":"CODE(Z43)","v":70},null,null,"Harrington Harbour",null,null,null,"Chevery / Mutton Bay (135$)",135]
[null,null,null,null,null,null,null,null,null,null,null,null,null,null,null,null,null,null,null,null,null,null,null,null,null,false,70,null,null,"Havre-St-Pierre",null,null,null,"Chevery / St-Augustin (261$)",261]
[null,null,null,null,null,null,null,null,null,null,null,null,null,null,null,null,null,null,null,null,null,null,null,null,null,false,{"$f":"CODE(Z45)","v":70},null,null,"La Romaine",null,null,null,"Chevery / Tête-à-la-Baleine (78$)",78]
[null,null,null,null,null,null,null,null,null,null,null,null,null,null,null,null,null,null,null,null,null,null,null,null,null,false,70,null,null,"La Tabatière",null,null,null,"Chevery / Vieux Fort (433$)",433]
[null,null,null,null,null,null,null,null,null,null,null,null,null,null,null,null,null,null,null,null,null,null,null,null,null,false,70,null,null,"Lourdes-de-Blanc-Sablon",null,null,null,"Harrington Harbour / Tête-à-la-Baleine (63$)",63]
[null,null,null,null,null,null,null,null,null,null,null,null,null,null,null,null,null,null,null,null,null,null,null,null,null,false,70,null,null,"Montréal",null,null,null,"Kegaska / Chevery (304$)",304]
[null,null,null,null,null,null,null,null,null,null,null,null,null,null,null,null,null,null,null,null,null,null,null,null,null,false,70,null,null,"Mutton Bay",null,null,null,"Kegaska / Harrington Harbour (339$)",339]
[null,null,null,null,null,null,null,null,null,null,null,null,null,null,null,null,null,null,null,null,null,null,null,null,null,false,70,null,null,"Port Menier",null,null,null,"Kegaska / La Romaine (114$)",114]
[null,null,null,null,null,null,null,null,null,null,null,null,null,null,null,null,null,null,null,null,null,null,null,null,null,false,70,null,null,"Québec",null,null,null,"Kegaska / La Tabatière (466$)",466]
[null,null,null,null,null,null,null,null,null,null,null,null,null,null,null,null,null,null,null,null,null,null,null,null,null,false,70,null,null,"Rivière St-Augustin",null,null,null,"Kegaska / Mutton Bay (439$)",439]
[null,null,null,null,null,null,null,null,null,null,null,null,null,null,null,null,null,null,null,null,null,null,null,null,null,false,70,null,null,"Rivière St-Paul",null,null,null,"Kegaska / St-Augustin (564$)",564]
[null,null,null,null,null,null,null,null,null,null,null,null,null,null,null,null,null,null,null,null,null,null,null,null,null,false,70,null,null,"Sept-Îles ",null,null,null,"Kegaska / Tête-à-la-Baleine (382$)",382]
[null,null,null,null,null,null,null,null,null,null,null,null,null,null,null,null,null,null,null,null,null,null,null,null,null,false,70,null,null,"Sherbrooke",null,null,null,"Kegaska / Vieux Fort (737$)",737]
[null,null,null,null,null,null,null,null,null,null,null,null,null,null,null,null,null,null,null,null,null,null,null,null,null,false,70,null,null,"Tête-à-la-Baleine",null,null,null,"La Romaine / Chevery (190$)",190,null,null,null,null,null,"Frais quotidiens"]
[null,null,null,null,null,null,null,null,null,null,null,null,null,null,null,null,null,null,null,null,null,null,null,null,null,null,null,null,null,"Vieux Fort",null,null,null,"La Romaine / Harrington Harbour (225$)",225,null,null,null,null,null,"Pension (Déjeuner) (8$)",8]
[null,null,null,null,null,null,null,null,null,null,null,null,null,null,null,null,null,null,null,null,null,null,null,null,null,null,null,null,null,null,null,null,null,"La Romaine / La Tabatière (353$)",353,null,null,null,null,null,"Pension (Déjeuner-Diner 20$)",20]
[null,null,null,null,null,null,null,null,null,null,null,null,null,null,null,null,null,null,null,null,null,null,null,null,null,null,null,null,null,null,null,null,null,"La Romaine / Mutton Bay (325$)",325,null,null,null,null,null,"Pension (Déjeuner-Souper 23$)",23]
[null,null,null,null,null,null,null,null,null,null,null,null,null,null,null,null,null,null,null,null,null,null,null,null,null,null,null,null,null,null,null,null,null,"La Romaine / St-Augustin (451$)",451,null,null,null,null,null,"Pension (Diner) (12$)",12]
[null,null,null,null,null,null,null,null,null,null,null,null,null,null,null,null,null,null,null,null,null,null,null,null,null,null,null,null,null,null,null,null,null,"La Romaine / Tête-à-la-Baleine (269$)",269,null,null,null,null,null,"Pension (Diner-Souper 27$)",27]
[null,null,null,null,null,null,null,null,null,null,null,null,null,null,null,null,null,null,null,null,null,null,null,null,null,null,null,null,null,null,null,null,null,"La Romaine / Vieux Fort (623$)",623,null,null,null,null,null,"Pension (Repas -1 journée 35$)",35]
[null,null,null,null,null,null,null,null,null,null,null,null,null,null,null,null,null,null,null,null,null,null,null,null,null,null,null,null,null,null,null,null,null,"La Tabatière / Harrington Harbour (147$)",147,null,null,null,null,null,"Pension (Souper) (15$)",15]
[null,null,null,null,null,null,null,null,null,null,null,null,null,null,null,null,null,null,null,null,null,null,null,null,null,null,null,null,null,null,null,null,null,"La Tabatière / Mutton Bay (24$)",24,null,null,null,null,null,"Pension hébergement (30$)",30]
[null,null,null,null,null,null,null,null,null,null,null,null,null,null,null,null,null,null,null,null,null,null,null,null,null,null,null,null,null,null,null,null,null,"La Tabatière / St-Augustin (116$)",116,null,null,null,null,null,"Per diem (Déjeuner 15$)",15]
[null,null,null,null,null,null,null,null,null,null,null,null,null,null,null,null,null,null,null,null,null,null,null,null,null,null,null,null,null,null,null,null,null,"La Tabatière / Tête-à-la-Baleine (84$)",84,null,null,null,null,null,"Per diem (Déjeuner-Diner 40$)",40]
[null,null,null,null,null,null,null,null,null,null,null,null,null,null,null,null,null,null,null,null,null,null,null,null,null,null,null,null,null,null,null,null,null,"La Tabatière / Vieux-Fort (288$)",288,null,null,null,null,null,"Per diem (Déjeuner-Souper 45$)",45]
[null,null,null,null,null,null,null,null,null,null,null,null,null,null,null,null,null,null,null,null,null,null,null,null,null,null,null,null,null,null,null,null,null,"Mutton Bay / Harrington Harbour(125$)",125,null,null,null,null,null,"Per diem (Diner 25$)",25]
[null,null,null,null,null,null,null,null,null,null,null,null,null,null,null,null,null,null,null,null,null,null,null,null,null,null,null,null,null,null,null,null,null,"Mutton Bay / La Tabatière (24$)",24,null,null,null,null,null,"Per diem (Diner-Souper 55$)",55]
[null,null,null,null,null,null,null,null,null,null,null,null,null,null,null,null,null,null,null,null,null,null,null,null,null,null,null,null,null,null,null,null,null,"Mutton Bay / St-Augustin (169$)",169,null,null,null,null,null,"Per diem (Repas-1 journée 70$)",70]
[null,null,null,null,null,null,null,null,null,null,null,null,null,null,null,null,null,null,null,null,null,null,null,null,null,null,null,null,null,null,null,null,null,"Mutton Bay / Tête-à-la-Baleine (57$)",57,null,null,null,null,null,"Per diem (Souper 30$)",30]
[null,null,null,null,null,null,null,null,null,null,null,null,null,null,null,null,null,null,null,null,null,null,null,null,null,null,null,null,null,null,null,null,null,"Mutton Bay / Vieux Fort (341$)",341,null,null,null,null,null,"Trajet < 15 km (10$)",10]
[null,null,null,null,null,null,null,null,null,null,null,null,null,null,null,null,null,null,null,null,null,null,null,null,null,null,null,null,null,null,null,null,null,"St-Augustin / Harrington Harbour (245$)",245]
[null,null,null,null,null,null,null,null,null,null,null,null,null,null,null,null,null,null,null,null,null,null,null,null,null,null,null,null,null,null,null,null,null,"St-Augustin / Tête-à-la-Baleine (182$)",182]
[null,null,null,null,null,null,null,null,null,null,null,null,null,null,null,null,null,null,null,null,null,null,null,null,null,null,null,null,null,null,null,null,null,"Vieux Fort / Harrington Harbour (417$)",417]
[null,null,null,null,null,null,null,null,null,null,null,null,null,null,null,null,null,null,null,null,null,null,null,null,null,null,null,null,null,null,null,null,null,"Vieux-Fort / Mutton Bay (341$)",341]
[null,null,null,null,null,null,null,null,null,null,null,null,null,null,null,null,null,null,null,null,null,null,null,null,null,null,null,null,null,null,null,null,null,"Vieux-Fort / St-Augustin (172$)",172]
[null,null,null,null,null,null,null,null,null,null,null,null,null,null,null,null,null,null,null,null,null,null,null,null,null,null,null,null,null,null,null,null,null,"Vieux-Fort / Tête-à-la-Baleine (355$)",355]
[]
[]
[]
[]
[]
[]
[]
[]
[]
[]
[]
[]
[]
[]
[]
[]
[]
[]
[]
[]
[]
[]
[]
[null,null,null,null,null,null,null,null,null,"  "]
[null,null,null,null,null,null,null,null,null,"  "]
[null,null,null,null,null,null,null,null,null,"  "]
[null,null,null,null,null,null,null,null,null,"  "]
[null,null,null,null,null,null,null,null,null,"  "]
[null,null,null,null,null,null,null,null,null,"  "]
[null,null,null,null,null,null,null,null,null,"  "]
[null,null,null,null,null,null,null,null,null,"  "]
[null,null,null,null,null,null,null,null,null,"  "]
[]
[]
["  "]
["  "]
["  "]
["  "]
["  "]
["  "]
["  "]
["  "]
["  "]

{"sheet":"KM (à titre indicatif) ","index":1,"n_rows":27,"n_cols":2,"rows_kept":27,"cut":false,"hidden":false,"merged":[]}
[]
[]
[]
[null,"Km à titre indicatif seulement"]
[null,"Kegaska -  Natasquan (48,8km)"]
[null,"Blanc-Sablon - Rimouski (1571 km)"]
[null,"Blanc-Sablon -Québec (1883km)"]
[null,"Blanc-Sablon- St-John(966km)"]
[null,"Lourdes-de-Blanc-Sablon - Blanc-Sablon (3,7km)"]
[null,"Montréal - Toronto (556km)"]
[null,"Montréal - Ottawa (202km)"]
[null,"Québec- Sherbrooke (254)"]
[null,"Québec-Montréal (267km)"]
[null,"Rivière St-Paul - Blanc Sablon (65,8km)"]
[null,"Sept-Îles -  Havre-St-Pierre (223km)"]
[null,"Sept-Îles - La Malbaie (502 km)"]
[null,"Sept-Îles - Montreal (920 km)"]
[null,"Sept-Îles - Québec (653km)"]
[null,"Sept-Îles- Baie-Comeau (233 km)"]
[null,"Sept-Îles- Natasquan (377km)"]
[null,"St-Barbe - Corner Brooke (350km)"]
[null,"St-Barbe - Deer Lake (298km)"]
[null,"St-Barbe - Port-aux Basques (577km)"]
[null,"St-Barbe - Stephenville (425km)"]
[null,"Vieux Fort - Rivière St-Paul (12km)"]
[null,"Lourdes-de-Blanc-Sablon - Rivière St-Paul (62,1km)"]
[null,"Lourdes de-Blanc-Sablon - Vieux-Fort (74,1 km)"]

{"sheet":"Modèle ","index":2,"n_rows":207,"n_cols":38,"rows_kept":207,"cut":false,"hidden":true,"merged":[[30,1,30,3],[32,17,34,17],[4,2,4,5],[7,2,7,5],[6,2,6,5],[32,12,32,13],[30,4,30,5],[32,4,32,5],[4,16,4,17],[6,16,6,17],[7,9,7,10],[9,9,9,10],[4,7,4,9],[11,8,11,9],[29,11,29,14]]}
[]
[null,null,"LOGO CS DU LITTORAL"]
[null,null,null,null,null,null,null,null,null,null,null,null,null,null,null,null,null,null,null,null,null,null,null,null,null,null,null,null,null,null,"Frais",null,"Nom du supérieur immédiat"]
[null,null,"Nom  du demandeur",null,null,null,null,"FRAIS    ",null,null,null,null,null,null,null,null,"CODE",null,null,null,null,null,null,null,null,null,null,null,null,null,"Frais de formation",null,"Deborah Foltin"]
[null,null,"William Smith-Dufault",null,null,null,null,"Frais de rencontre",null,null,null,null,null,null,null,null,null,null,null,null,null,null,null,null,null,null,null,null,null,null,"Frais de rencontre",null,"Eileen Schofield"]
[null,null,null,null,null,null,null,null,null,null,null,null,null,null,null,null,null,null,null,null,null,null,null,null,null,null,null,null,null,null,null,null,"Janet Gallupe"]
[null,null,"Nom du supérieur immédiat",null,null,null,null,null,null,null,null,null,null,"    am            pm",null,null,null,null,null,null,null,null,null,null,null,null,null,null,null,null,null,null,"Jean Picard"]
[null,null,"Jean Picard",null,null,null,null,null,"DATE DE DÉPART:","2010-06-09",null,"HEURE:","10:00:00",null,null,null,null,null,null,null,null,null,null,null,null,null,null,null,null,null,null,null,"Jean-Jacques Rhéaume"]
[null,null,null,null,null,null,null,null,null,null,null,null,null,null,null,null,null,null,null,null,null,null,null,null,null,null,null,null,null,null,null,null,"Lucy DeMendoça"]
[null,null,null,null,null,null,null,null,"DATE DE RETOUR:","2010-06-15",null,"HEURE:","09:30:00",null,null,null,null,null,null,null,null,null,null,null,null,null,null,null,null,null,null,null,"Marc-André Masse"]
[null,null,null,null,null,null,null,null,null,null,null,null,null,null,null,null,null,null,null,null,null,null,null,null,null,null,null,null,null,null,null,null,"Martine Joncas"]
[null,null,"Date","Nb  jour","Frais Km","$","Frais remboursé                          (montant employé)","$","Allocations versées",null,"Nb fois","$","Frais fondés sur les reçus","Montant du reçu                              ($)","Nbr Km ","$","Total de la ligne","Justification","Reçu manquant",null,null,null,null,"Total ligne",null,null,"remb frais","Kilometrage","allocation versés entre village",null,null,null,"Nadia Landry",null,null,"Frais fondés sur les reçu"]
[null,null,"2010-06-10",2,"Blanc-Sablon -Sept-Iles (1800km)",{"$f":"AB13","v":828},"Chevery/ Tête-a-la-Baleine (37,50)",{"$f":"AA13","v":37.5},"Bureau de poste","La Romaine",4,{"$f":"IF($K13>0,$AC13*$K13,\" \")","v":32},"Taxi, $ du reçu",25,900,{"$f":"IF(O13>0,O13*0.46,\" \")","v":414},{"$f":"IF(D13>0,X13,\" \")","v":1336.5},null,null,null,null,null,null,{"$f":"(AA13+AB13+(AC13*K13))+IF(O13<0,0,(O13*0.46))+N13","v":1336.5},null,null,{"$f":"IF(ISNA(VLOOKUP($G13,$AH$34:$AI$52,2,FALSE))=TRUE, ,VLOOKUP($G13,$AH$34:$AI$52,2,FALSE))","v":37.5},{"$f":"IF(ISNA(VLOOKUP($E13,$AF$22:$AH$28,3,FALSE))=TRUE, ,VLOOKUP($E13,$AF$22:$AH$28,3,FALSE))","v":828},{"$f":"IF($K13=0,0, IF($AB76=1,(VLOOKUP($J13,$AH$78:$AI$91,2)),IF($AB76=2,(VLOOKUP($J13,$AH$78:$AJ$91,3)),IF($AB76=3,(VLOOKUP($J13,$AH$78:$AK$91,4)),IF($AB76=4,(VLOOKUP($J13,$AH$78:$AL$91,5)),)))))","v":8},null,null,null,"Philipp Robertson",null,null,"autobus"]
[null,null,"2010-06-14",2,"Sept-Iles - Montreal (900)",{"$f":"AB14","v":414},"frais de repas 1/2 jour (dejeuner-Diner) (33,00)",{"$f":"AA14","v":33},"Village","Kégaska",4,{"$f":"IF($K14>0,$AC14*$K14,\" \")","v":0},"Stationnement, $ du reçu",45,34,{"$f":"IF(O14>0,O14*0.46,\" \")","v":15.64},{"$f":"IF(D14>0,X14,\" \")","v":507.64},null,null,null,null,null,null,{"$f":"(AA14+AB14+(AC14*K14))+IF(O14<0,0,(O14*0.46))+N14","v":507.64},null,null,33,{"$f":"IF(ISNA(VLOOKUP($E14,$AF$22:$AH$28,3,FALSE))=TRUE, ,VLOOKUP($E14,$AF$22:$AH$28,3,FALSE))","v":414},{"$f":"IF($K14=0,0, IF($AB77=1,(VLOOKUP($J14,$AH$78:$AI$92,2)),IF($AB77=2,(VLOOKUP($J14,$AH$78:$AJ$92,3)),IF($AB77=3,(VLOOKUP($J14,$AH$78:$AK$92,4)),IF($AB77=4,(VLOOKUP($J14,$AH$78:$AL$92,5)),)))))","v":0},null,null,null,"Vincent Joncas",null,null,"Autres"]
[null,null,"2010-06-14",4,"OFB-Blanc-Sablon  (30km)",14.7,"Hébergment (sans reçu)",{"$f":"AA15","v":30},"Aéroport","Chevery",2,16,null,null,null,{"$f":"IF(O15>0,O15*0.46,\" \")","v":" "},{"$f":"IF(D15>0,X15,\" \")","v":60.7},null,null,null,null,null,null,60.7,null,null,30,14.7,{"$f":"IF($K15=0,0, IF($AB78=1,(VLOOKUP($J15,$AH$78:$AI$92,2)),IF($AB78=2,(VLOOKUP($J15,$AH$78:$AJ$92,3)),IF($AB78=3,(VLOOKUP($J15,$AH$78:$AK$92,4)),IF($AB78=4,(VLOOKUP($J15,$AH$78:$AL$92,5)),)))))","v":8},null,null,null,"William Macneil",null,null,"Avion"]
[null,null,null,null,null,0,null,0,null,null,null," ",null,null,null,{"$f":"IF(O16>0,O16*0.46,\" \")","v":" "}," ",null,null,null,null,null,null,0,null,null,0,0,0,null,null,null,"Yves Crépeau",null,null,"Hébergement, fact d'hôtel"]
[null,null,null,null,null,0,null,0,null,null,null," ",null,null,null," "," ",null,null,null,null,null,null,0,null,null,0,0,0,null,null,null,null,null,null,"Stationnement, $ du reçu"]
[null,null,null,null,null,0,null,0,null,null,null," ",null,null,null," "," ",null,null,null,null,null,null,0,null,null,0,0,0,null,null,null,null,null,null,"Taxi, $ du reçu"]
[null,null,null,null,null,0,null,0,null,null,null," ",null,null,null," "," ",null,null,null,null,null,null,0,null,null,0,0,0,null,null,null,null,null,null,"Train, $ du reçu"]
[null,null,null,null,null,0,null,0,null,null,null," ",null,null,null," "," ",null,null,null,null,null,null,0,null,null,0,0,0,null,null,null,null,null,null,"Transport en commun"]
[null,null,null,null,null,0,null,0,null,null,null," ",null,null,null," "," ",null,null,null,null,null,null,0,null,null,0,0,0,null,null,"Kilometre",0.46,0.49,null,"Traverse BS-TN"]
[null,null,null,null,null,0,null,0,null,null,null," ",null,null,null," "," ",null,null,null,null,null,null,0,null,null,0,0,0,null,null,"Blanc-Sablon- NL (500km)",500,{"$f":"AG22*$AG$21","v":230},null,"Traverse St-Barbe"]
[null,null,null,null,null,0,null,0,null,null,null," ",null,null,null," "," ",null,null,null,null,null,null,0,null,null,0,0,0,null,null,"Blanc-Sablon -Sept-Iles (1800km)",1800,{"$f":"AG23*$AG$21","v":828}]
[null,null,null,null,null,0,null,0,null,null,null," ",null,null,null," "," ",null,null,null,null,null,null,0,null,null,0,0,0,null,null,"LBS - Blanc-Sablon (10km)",10,{"$f":"$AH$21*AG24","v":4.9000000000000004}]
[null,null,null,null,null,0,null,0,null,null,null," ",null,null,null," "," ",null,null,null,null,null,null,0,null,null,0,0,0,null,null,"OFB-Blanc-Sablon  (30km)",30,{"$f":"AG25*AH21","v":14.7}]
[null,null,null,null,null,0,null,0,null,null,null," ",null,null,null," "," ",null,null,null,null,null,null,0,null,null,0,0,0,null,null,"Sept-Iles - Montreal (900)",900,{"$f":"AG26*$AG$21","v":414}]
[null,null,null,null,null,0,null,0,null,null,null," ",null,null,null," "," ",null,null,null,null,null,null,0,null,null,0,0,0,null,null,"Sept-Iles - Quebec (700km)",700,{"$f":"AG27*$AG$21","v":322}]
[null,null,null,null,null,0,null,0,null,null,null," ",null,null,null," "," ",null,null,null,null,null,null,0,null,null,0,0,0,null,null,"St-Paul -Blanc-sablon (20km)",20,{"$f":"$AH$21*AG28","v":9.8000000000000007}]
[null,null,null,null,null,0,null,0,null,null,null," ",null,null,null," "," ",null,null,null,null,null,null,0,null,null,0,0,0]
[null,null,null,null,null,null,null,null,"Date",{"$f":"TODAY()","v":"2021-11-22"},null,"Réservé à l'administration"]
[null,"Signature de l'employé "]
[null,null,null,null,null,null,null,null,null,null,null,"Saisi par:",null,null,null,null,null,"Total du frais de déplacement "]
[null,"Signature du superviseur",null,null,null,null,null,null,null,null,null,null,null,null,null,null,null,{"$f":"SUM(Q13:Q29)","v":1904.84},null,null,null,null,null,null,null,null,null,null,null,null,null,null,null,"Remb frais "]
[null,null,null,null,null,null,null,null,null,null,null,"Code:",null,null,null,null,null,null,null,null,null,null,null,null,null,null,null,null,null,null,null,null,null,"Chevery/ Harrington Harbour (16,50)",16.5]
[null,null,null,null,null,null,null,null,null,null,null,null,null,null,null,null,null,null,null,null,null,null,null,null,null,null,null,null,null,null,null,null,null,"Chevery/ Kegaska (142,50)",142.5]
[null,null,null,null,null,null,null,null,null,null,null,"Date:",null,null,null,null,null,null,null,null,null,null,null,null,null,null,null,null,null,null,null,null,null,"Chevery/ La Tabatière (75,50)",75.5]
[null,null,null,null,null,null,null,null,null,null,null,null,null,null,null,null,null,null,null,null,null,null,null,null,null,null,null,null,null,null,null,null,null,"Chevery/ Rivière St-Augustin (130,00)",130]
[null,null,null,null,null,null,null,null,null,null,null,null,null,null,null,null,null,null,null,null,null,null,null,null,null,null,null,null,null,null,null,null,null,"Chevery/ Tête-a-la-Baleine (37,50)",37.5]
[null,null,null,null,null,null,null,null,null,null,null,null,null,null,null,null,null,null,null,null,null,null,null,null,null,null,null,null,null,null,null,null,null,"Chevery/La Romaine (90.00)",90]
[null,null,null,null,null,null,null,null,null,null,null,null,null,null,null,null,{"$f":"T(C8)","v":"Jean Picard"},null,null,null,null,null,null,null,null,null,null,null,null,null,null,null,null,"Dejeuner (10,00)",10]
[null,null,null,null,null,null,null,null,null,null,null,null,null,null,null,null,null,null,null,null,null,null,null,null,null,null,null,null,null,null,null,null,null,"Diner (15,00)",15]
[null,null,null,null,null,null,null,null,null,null,null,null,null,null,null,null,null,null,null,null,null,null,null,null,null,null,null,null,null,null,null,null,null,"frais de repas 1/2 jour (dejeuner-Diner) (33,00)",33]
[null,null,null,null,null,null,null,null,null,null,null,null,null,null,null,null,null,null,null,null,null,null,null,null,null,null,null,null,null,null,null,null,null,"Frais de repas 1/2 jour (Diner-Souper 50,00)",{"$f":"15+ 27+8","v":50}]
[null,null,null,null,null,null,null,null,null,null,null,null,null,null,null,null,null,null,null,null,null,null,null,null,null,null,null,null,null,null,null,null,null,"Hébergment (sans reçu)",30]
[null,null,null,null,null,null,null,null,null,null,null,null,null,null,null,null,null,null,null,null,null,null,null,null,null,null,null,null,null,null,null,null,null,"Kegaska / La Romaine (53,50)",53.5]
[null,null,null,null,null,null,null,null,null,null,null,null,null,null,null,null,null,null,null,null,null,null,null,null,null,null,null,null,null,null,null,null,null,"Kegaska/Natasquan (45.00)",45]
[null,null,null,null,null,null,null,null,null,null,null,null,null,null,null,null,null,null,null,null,null,null,null,null,null,null,null,null,null,null,null,null,null,"La Tabatière/ Old Fort Bay (12,00)",12]
[null,null,null,null,null,null,null,null,null,null,null,null,null,null,null,null,null,null,null,null,null,null,null,null,null,null,null,null,null,null,null,null,null,"La Tabatière/ Rivière St-Augustin (54,50)",54.5]
[null,null,null,null,null,null,null,null,null,null,null,null,null,null,null,null,null,null,null,null,null,null,null,null,null,null,null,null,null,null,null,null,null,"Rivière St-Augustin/ Old Fort Bay (75,50)",75.5]
[null,null,null,null,null,null,null,null,null,null,null,null,null,null,null,null,null,null,null,null,null,null,null,null,null,null,null,null,null,null,null,null,null,"Souper (27,00)",27]
[null,null,null,null,null,null,null,null,null,null,null,null,null,null,null,null,null,null,null,null,null,null,null,null,null,null,null,null,null,null,null,null,null,"Tête-a-la-Baleine/ La Tabatière (45,00)",45]
[]
[]
[]
[]
[]
[]
[]
[]
[]
[]
[]
[]
[]
[]
[]
[]
[]
[]
[]
[]
[]
[null,null,null,null,null,null,null,null,null,null,null,null,null,null,null,null,null,null,null,null,null,null,null,null,null,null,null,null,"Mutton Bay"]
[]
[]
[null,null,null,null,null,null,null,null,null,null,null,null,null,null,null,null,null,null,null,null,null,null,null,null,null,null,null,{"$f":"VLOOKUP($I13,$AD$78:$AE$81,2)","v":2},null,null,null,null,null,"Allocation lors des déplacemen"]
[null,null,null,null,null,null,null,null,null,null,null,null,null,null,null,null,null,null,null,null,null,null,null,null,null,null,null,{"$f":"VLOOKUP($I14,$AD$78:$AE$81,2)","v":4},null,null,null,null,null,"Village","Aéroport","Bureau de poste","Quai","Village"]
[null,null,null,null,null,null,null,null,null,null,null,null,null,null,null,null,null,null,null,null,null,null,null,null,null,null,null,1,null,"Aéroport",1,null,null,"Blanc-Sablon",10,8,8,8]
[null,null,null,null,null,null,null,null,null,null,null,null,null,null,null,null,null,null,null,null,null,null,null,null,null,null,null,{"$error":"#N/A"},null,"Bureau de poste",2,null,null,"Chevery",8,8,8,0]
[null,null,null,null,null,null,null,null,null,null,null,null,null,null,null,null,null,null,null,null,null,null,null,null,null,null,null,{"$error":"#N/A"},null,"Quai",3,null,null,"Chevery (succursale)",8,8,8,0]
[null,null,null,null,null,null,null,null,null,null,null,null,null,null,null,null,null,null,null,null,null,null,null,null,null,null,null,{"$error":"#N/A"},null,"Village",4,null,null,"Harrington",0,8,8,0]
[null,null,null,null,null,null,null,null,null,null,null,null,null,null,null,null,null,null,null,null,null,null,null,null,null,null,null,{"$error":"#N/A"},null,null,null,null,null,"Kégaska",8,8,8,0]
[null,null,null,null,null,null,null,null,null,null,null,null,null,null,null,null,null,null,null,null,null,null,null,null,null,null,null,{"$error":"#N/A"},null,null,null,null,null,"La Romaine",8,8,8,0]
[null,null,null,null,null,null,null,null,null,null,null,null,null,null,null,null,null,null,null,null,null,null,null,null,null,null,null,{"$error":"#N/A"},null,null,null,null,null,"La Tabatière",8,8,8,0]
[null,null,null,null,null,null,null,null,null,null,null,null,null,null,null,null,null,null,null,null,null,null,null,null,null,null,null,{"$error":"#N/A"},null,null,null,null,null,"Middle bay",0,0,0,0]
[null,null,null,null,null,null,null,null,null,null,null,null,null,null,null,null,null,null,null,null,null,null,null,null,null,null,null,{"$error":"#N/A"},null,null,null,null,null,"Mutton Bay",8,8,8,0]
[null,null,null,null,null,null,null,null,null,null,null,null,null,null,null,null,null,null,null,null,null,null,null,null,null,null,null,{"$error":"#N/A"},null,null,null,null,null,"Old Fort Bay",75,8,8,0]
[null,null,null,null,null,null,null,null,null,null,null,null,null,null,null,null,null,null,null,null,null,null,null,null,null,null,null,null,null,null,null,null,null,"Port-Menier",8,8,8,8]
[null,null,null,null,null,null,null,null,null,null,null,null,null,null,null,null,null,null,null,null,null,null,null,null,null,null,null,null,null,null,null,null,null,"St-Augustin",8,8,8,0]
[null,null,null,null,null,null,null,null,null,null,null,null,null,null,null,null,null,null,null,null,null,null,null,null,null,null,null,null,null,null,null,null,null,"St-Paul",51.5,8,24,0]
[null,null,null,null,null,null,null,null,null,null,null,null,null,null,null,null,null,null,null,null,null,null,null,null,null,null,null,null,null,null,null,null,null,"Tête-à-la-Baleine",8,8,18,0]
[]
[]
[]
[]
[]
[]
[]
[]
[]
[]
[]
[null,null,null,null,null,null,null,null,null,null,null,null,null,null,null,"  "]
[null,null,null,null,null,null,null,null,null,null,null,null,null,null,null,"  "]
[null,null,null,null,null,null,null,null,null,null,null,null,null,null,null,"  "]
[null,null,null,null,null,null,null,null,null,null,null,null,null,null,null,"  "]
[null,null,null,null,null,null,null,null,null,null,null,null,null,null,null,"  "]
[null,null,null,null,null,null,null,null,null,null,null,null,null,null,null,"  "]
[null,null,null,null,null,null,null,null,null,null,null,null,null,null,null,"  "]
[null,null,null,null,null,null,null,null,null,null,null,null,null,null,null,"  "]
[null,null,null,null,null,null,null,null,null,null,null,null,null,null,null,"  "]
[]
[]
[null,null,"  "]
[null,null,"  "]
[null,null,"  "]
[null,null,"  "]
[null,null,"  "]
[null,null,"  "]
[null,null,"  "]
[null,null,"  "]
[null,null,"  "]
[]
[]
[]
[]
[]
[]
[]
[]
[]
[]
[]
[]
[]
[]
[]
[]
[]
[]
[]
[]
[]
[]
[]
[]
[]
[]
[]
[]
[]
[]
[]
[]
[]
[]
[]
[]
[]
[]
[]
[]
[]
[]
[]
[]
[]
[]
[]
[]
[]
[]
[]
[]
[]
[]
[]
[]
[]
[]
[]
[]
[]
[null,null,"Frais Quotidiens hors Québec",null,null,null,null,null,null,null,null,null,null,null,null,"Frais fondés sur les reçus hors Québec"]
[]
[null,null,"Allocation forf 12 hres -ADM  67,50$",67.5,null,null,null,null,null,null,null,null,null,null,null,"Allocation forf modifiée"]
[null,null,"Allocation forf 12 hres -ADM 135$",135,null,null,null,null,null,null,null,null,null,null,null,"Allocation quotidienne 60% de l'héberg.+ repas"]
[null,null,"Repas - Déjeuner  10,40$",10.4,"Indemnité -Repas au Québec-Déjeuner (Dir. 61111, art.13a) 10,40$",null,null,null,null,null,null,null,null,null,null,"Appel téléphonique - Bureau, $ du reçu"]
[null,null,"Repas - Diner  14.30$",14.3,"Indemnité -Repas au Québec-Diner (Dir. 61111, art. 13b) 14.30$",null,null,null,null,null,null,null,null,null,null,"Appel téléphonique - Personnel, $ du reçu"]
[null,null,"Repas - Souper  21.55$",21.55,"Indemnité -Repas au Québec-Souper (Dir. 61111, art. 13c) 21.55$",null,null,null,null,null,null,null,null,null,null,"Assignation - Indem, hebdomadaire"]
[null,null,"  ",null,null,null,null,null,null,null,null,null,null,null,null,"Autres"]
[null,null,"  ",null,null,null,null,null,null,null,null,null,null,null,null,"Essence (pr loc d'auto), "]
[null,null,"  ",null,null,null,null,null,null,null,null,null,null,null,null,"Frais d'obtention - Devises"]
[null,null,"  ",null,null,null,null,null,null,null,null,null,null,null,null,"Frais d'obtention - Passeport"]
[null,null,"  ",null,null,null,null,null,null,null,null,null,null,null,null,"Hébergement, fact d'hôtel"]
[null,null,"  ",null,null,null,null,null,null,null,null,null,null,null,null,"Location de voiture"]
[null,null,"  ",null,null,null,null,null,null,null,null,null,null,null,null,"Petites dépenses (10%)"]
[null,null,"  ",null,null,null,null,null,null,null,null,null,null,null,null,"R-Déjeuner au restaurant (20%"]
[null,null,"  ",null,null,null,null,null,null,null,null,null,null,null,null,"R-Diner au restaurant (35%)"]
[null,null,"  ",null,null,null,null,null,null,null,null,null,null,null,null,"R-Repas jour complet"]
[null,null,"  ",null,null,null,null,null,null,null,null,null,null,null,null,"R-Souper au restaurant (45%)"]
[null,null,"  ",null,null,null,null,null,null,null,null,null,null,null,null,"Stationnement, $ du reçu"]
[null,null,"  ",null,null,null,null,null,null,null,null,null,null,null,null,"Taxi, $ du reçu"]
[null,null,"  ",null,null,null,null,null,null,null,null,null,null,null,null,"Train, $ du reçu"]
[null,null,"  ",null,null,null,null,null,null,null,null,null,null,null,null,"Transport en commun"]
[null,null,"  "]
[null,null,"  "]